fUSD/lending_fUSD_20240803
["ID","MTS","AMOUNT","RATE_DAILY","PERIOD"]
[333973428,1722655841148,-500.0,0.00016333,2]
[333973430,1722655841158,-288.71116042,0.00016333,2]
[333973432,1722655841167,-500.0,0.00016333,2]
[333973434,1722655841177,-500.0,0.00016333,2]
[333973436,1722655841186,-500.0,0.00016333,2]
[333973438,1722655841195,-500.0,0.00016333,2]
[333973440,1722655841204,-1770.65376555,0.00016335,5]
[333973442,1722655841214,-85955.2755,0.00016336,2]
[333973444,1722655841223,-147824.8665,0.00016336,2]
[333973445,1722655841233,-194.83867798,0.00016338,2]
[333973447,1722655841243,-13832.10589748,0.000164,2]
[333973449,1722655841253,-198.42,0.00016433,2]
[333973451,1722655841268,-600.83148871,0.00016437,2]
[333973454,1722655841280,-195216.19456083,0.00016438,7]
[333973456,1722655841290,-22080.09841868,0.00016438,2]
[333973458,1722655841299,-1000.0,0.00016438,2]
[333973460,1722655841310,-3672.40390372,0.00016438,15]
[333973462,1722655841319,-500.0,0.00016438,2]
[333973463,1722655841329,-500.0,0.00016438,2]
[333973465,1722655841338,-500.0,0.00016438,2]
[333973467,1722655841348,-500.0,0.00016438,2]
[333973469,1722655841358,-500.0,0.00016438,2]
[333973471,1722655841368,-500.0,0.00016438,2]
[333973473,1722655841377,-500.0,0.00016438,2]
[333973475,1722655841387,-500.0,0.00016438,2]
[333973477,1722655841396,-500.0,0.00016438,2]
[333973479,1722655841405,-500.0,0.00016438,2]
[333973481,1722655841416,-566.05986286,0.00016438,2]
[333973483,1722655841425,-500.0,0.00016438,2]
[333973485,1722655841434,-532.688631,0.00016438,2]
[333973487,1722655841443,-500.0,0.00016438,2]
[333973489,1722655841452,-500.0,0.00016438,2]
[333973491,1722655841462,-500.0,0.00016438,2]
[333973493,1722655841471,-500.0,0.00016438,2]
[333973495,1722655841480,-500.0,0.00016438,2]
[333973497,1722655841490,-500.0,0.00016438,2]
[333973499,1722655841499,-170.27094843,0.00016438,2]
[333973501,1722655841509,-500.0,0.00016438,2]
[333973503,1722655841518,-500.0,0.00016438,2]
[333973505,1722655841530,-500.0,0.00016438,2]
[333973507,1722655841539,-668.5,0.00016438,2]
[333973509,1722655841548,-500.0,0.00016438,2]
[333973511,1722655841558,-500.0,0.00016438,2]
[333973512,1722655841567,-500.0,0.00016438,2]
[333973514,1722655841577,-500.0,0.00016438,2]
[333973516,1722655841586,-500.0,0.00016438,2]
[333973518,1722655841595,-658.43,0.00016438,2]
[333973520,1722655841604,-564.48,0.00016438,2]
[333973522,1722655841614,-500.0,0.00016438,2]
[333973524,1722655841623,-611.62,0.00016438,2]
[333973526,1722655841633,-151.0,0.00016438,2]
[333973528,1722655841642,-500.0,0.00016438,2]
[333973530,1722655841652,-545.99,0.00016438,2]
[333973532,1722655841661,-500.0,0.00016438,2]
[333973534,1722655841671,-500.0,0.00016438,2]
[333973536,1722655841680,-500.0,0.00016438,2]
[333973538,1722655841689,-500.0,0.00016438,2]
[333973540,1722655841699,-500.0,0.00016438,2]
[333973542,1722655841708,-500.0,0.00016438,2]
[333973544,1722655841717,-500.0,0.00016438,2]
[333973546,1722655841727,-500.0,0.00016438,2]
[333973548,1722655841736,-503.08,0.00016438,2]
[333973550,1722655841747,-500.0,0.00016438,2]
[333973552,1722655841757,-532.99,0.00016438,2]
[333973554,1722655841766,-546.34,0.00016438,2]
[333973556,1722655841775,-500.0,0.00016438,2]
[333973558,1722655841794,-500.0,0.00016438,2]
[333973560,1722655841804,-591.89,0.00016438,2]
[333973562,1722655841814,-370.49964644,0.00016438,2]
[333973564,1722655841823,-500.0,0.00016438,2]
[333973566,1722655841832,-500.0,0.00016438,2]
[333973568,1722655841842,-500.0,0.00016438,2]
[333973570,1722655841852,-500.0,0.00016438,2]
[333973572,1722655841862,-500.0,0.00016438,2]
[333973574,1722655841872,-500.0,0.00016438,2]
[333973576,1722655841881,-500.0,0.00016438,2]
[333973578,1722655841890,-500.0,0.00016438,2]
[333973580,1722655841901,-809.45,0.00016438,2]
[333973582,1722655841911,-500.0,0.00016438,2]
[333973584,1722655841920,-550.65,0.00016438,2]
[333973585,1722655841930,-500.0,0.00016438,2]
[333973586,1722655841940,-500.0,0.00016438,2]
[333973587,1722655841949,-558.14,0.00016438,2]
[333973588,1722655841958,-500.0,0.00016438,2]
[333973589,1722655841967,-500.0,0.00016438,2]
[333973590,1722655841976,-500.0,0.00016438,2]
[333973591,1722655841986,-244.8031473,0.00016438,2]
[333973592,1722655841995,-500.0,0.00016438,2]
[333973593,1722655842004,-500.0,0.00016438,2]
[333973594,1722655842013,-494.55867221,0.00016438,2]
[333973595,1722655842023,-500.0,0.00016438,2]
[333973596,1722655842034,-500.0,0.00016438,2]
[333973598,1722655842043,-500.0,0.00016438,2]
[333973600,1722655842052,-506.38,0.00016438,2]
[333973602,1722655842062,-500.0,0.00016438,2]
[333973604,1722655842071,-500.0,0.00016438,2]
[333973605,1722655842081,-500.0,0.00016438,2]
[333973607,1722655842090,-551.37,0.00016438,2]
[333973609,1722655842099,-500.0,0.00016438,2]
[333973611,1722655842109,-500.56843218,0.00016438,2]
[333973613,1722655842118,-500.0,0.00016438,2]
[333973615,1722655842127,-500.0,0.00016438,2]
[333973617,1722655842136,-500.0,0.00016438,2]
[333973619,1722655842146,-500.0,0.00016438,2]
[333973621,1722655842156,-500.0,0.00016438,2]
[333973623,1722655842166,-500.0,0.00016438,2]
[333973625,1722655842175,-570.37,0.00016438,2]
[333973627,1722655842184,-500.0,0.00016438,2]
[333973629,1722655842193,-500.0,0.00016438,2]
[333973631,1722655842203,-500.0,0.00016438,2]
[333973633,1722655842212,-625.82,0.00016438,2]
[333973635,1722655842221,-500.0,0.00016438,2]
[333973637,1722655842231,-500.0,0.00016438,2]
[333973638,1722655842240,-500.0,0.00016438,2]
[333973640,1722655842249,-324.84061313,0.00016438,2]
[333973642,1722655842259,-500.0,0.00016438,2]
[333973644,1722655842272,-500.0,0.00016438,2]
[333973646,1722655842283,-500.0,0.00016438,2]
[333973648,1722655842292,-500.0,0.00016438,2]
[333973650,1722655842301,-500.0,0.00016438,2]
[333973651,1722655842310,-500.0,0.00016438,2]
[333973653,1722655842320,-500.0,0.00016438,2]
[333973655,1722655842329,-500.0,0.00016438,2]
[333973657,1722655842341,-500.0,0.00016438,2]
[333973659,1722655842350,-500.0,0.00016438,2]
[333973661,1722655842360,-500.0,0.00016438,2]
[333973663,1722655842370,-607.31,0.00016438,2]
[333973665,1722655842380,-666.48,0.00016438,2]
[333973667,1722655842391,-500.0,0.00016438,2]
[333973669,1722655842402,-200.0,0.00016438,2]
[333973672,1722655842413,-500.0,0.00016438,2]
[333973674,1722655842423,-500.0,0.00016438,2]
[333973676,1722655842433,-500.0,0.00016438,2]
[333973678,1722655842442,-500.0,0.00016438,2]
[333973680,1722655842451,-500.0,0.00016438,2]
[333973682,1722655842460,-500.0,0.00016438,2]
[333973683,1722655842470,-500.0,0.00016438,2]
[333973685,1722655842479,-500.0,0.00016438,2]
[333973687,1722655842488,-500.0,0.00016438,2]
[333973689,1722655842497,-500.0,0.00016438,2]
[333973691,1722655842506,-500.0,0.00016438,2]
[333973693,1722655842516,-500.0,0.00016438,2]
[333973695,1722655842526,-500.0,0.00016438,2]
[333973697,1722655842536,-500.0,0.00016438,2]
[333973699,1722655842545,-500.0,0.00016438,2]
[333973701,1722655842554,-500.0,0.00016438,2]
[333973703,1722655842563,-500.0,0.00016438,2]
[333973705,1722655842572,-634.99538817,0.00016438,2]
[333973707,1722655842581,-500.0,0.00016438,2]
[333973709,1722655842590,-500.0,0.00016438,2]
[333973711,1722655842602,-707.23,0.00016438,2]
[333973713,1722655842611,-500.0,0.00016438,2]
[333973714,1722655842620,-500.0,0.00016438,2]
[333973716,1722655842629,-500.0,0.00016438,2]
[333973718,1722655842638,-768.82,0.00016438,2]
[333973720,1722655842647,-500.0,0.00016438,2]
[333973722,1722655842657,-1055.07,0.00016438,2]
[333973724,1722655842667,-555.98,0.00016438,2]
[333973727,1722655842677,-500.0,0.00016438,2]
[333973729,1722655842686,-500.0,0.00016438,2]
[333973731,1722655842696,-500.0,0.00016438,2]
[333973733,1722655842705,-500.0,0.00016438,2]
[333973735,1722655842715,-500.0,0.00016438,2]
[333973737,1722655842725,-500.0,0.00016438,2]
[333973739,1722655842736,-500.0,0.00016438,2]
[333973741,1722655842747,-500.0,0.00016438,2]
[333973743,1722655842757,-500.0,0.00016438,2]
[333973745,1722655842767,-500.0,0.00016438,2]
[333973747,1722655842777,-500.0,0.00016438,2]
[333973749,1722655842786,-500.0,0.00016438,2]
[333973751,1722655842796,-727.03,0.00016438,2]
[333973752,1722655842806,-500.0,0.00016438,2]
[333973754,1722655842815,-500.0,0.00016438,2]
[333973756,1722655842824,-500.0,0.00016438,2]
[333973758,1722655842834,-833.52,0.00016438,2]
[333973760,1722655842843,-500.0,0.00016438,2]
[333973762,1722655842852,-500.0,0.00016438,2]
[333973764,1722655842861,-500.0,0.00016438,2]
[333973766,1722655842871,-500.0,0.00016438,2]
[333973768,1722655842880,-500.0,0.00016438,2]
[333973771,1722655842890,-500.0,0.00016438,2]
[333973774,1722655842899,-500.0,0.00016438,2]
[333973777,1722655842908,-500.0,0.00016438,2]
[333973779,1722655842917,-908.71,0.00016438,2]
[333973781,1722655842927,-554.96,0.00016438,2]
[333973783,1722655842937,-500.0,0.00016438,2]
[333973785,1722655842946,-500.0,0.00016438,2]
[333973787,1722655842956,-500.0,0.00016438,2]
[333973789,1722655842965,-500.0,0.00016438,2]
[333973791,1722655842974,-841.7,0.00016438,2]
[333973793,1722655842984,-500.0,0.00016438,2]
[333973795,1722655842994,-513.17,0.00016438,2]
[333973797,1722655843003,-500.0,0.00016438,2]
[333973799,1722655843012,-500.0,0.00016438,2]
[333973802,1722655843022,-547.27,0.00016438,2]
[333973805,1722655843032,-977.43,0.00016438,2]
[333973808,1722655843043,-500.0,0.00016438,2]
[333973810,1722655843052,-923.43,0.00016438,2]
[333973813,1722655843063,-500.0,0.00016438,2]
[333973816,1722655843073,-500.0,0.00016438,2]
[333973819,1722655843082,-500.0,0.00016438,2]
[333973820,1722655843092,-500.0,0.00016438,2]
[333973822,1722655843101,-500.0,0.00016438,2]
[333973824,1722655843111,-1109.47,0.00016438,2]
[333973826,1722655843120,-500.0,0.00016438,2]
[333973828,1722655843129,-890.45,0.00016438,2]
[333973830,1722655843140,-500.0,0.00016438,2]
[333973832,1722655843150,-500.0,0.00016438,2]
[333973834,1722655843159,-500.0,0.00016438,2]
[333973836,1722655843168,-942.03,0.00016438,2]
[333973838,1722655843178,-516.43,0.00016438,2]
[333973839,1722655843187,-391.0615324,0.00016438,2]
[333973840,1722655843197,-500.0,0.00016438,2]
[333973841,1722655843206,-500.0,0.00016438,2]
[333973842,1722655843215,-393.66243894,0.00016438,2]
[333973843,1722655843224,-500.0,0.00016438,2]
[333973844,1722655843234,-500.0,0.00016438,2]
[333973845,1722655843243,-500.0,0.00016438,2]
[333973846,1722655843253,-500.0,0.00016438,2]
[333973847,1722655843502,-500.0,0.00016438,2]
[333973848,1722655843512,-500.0,0.00016438,2]
[333973849,1722655843521,-500.0,0.00016438,2]
[333973850,1722655843532,-804.22,0.00016438,2]
[333973851,1722655843541,-500.0,0.00016438,2]
[333973852,1722655843550,-880.71,0.00016438,2]
[333973853,1722655843559,-684.83,0.00016438,2]
[333973854,1722655843568,-613.03,0.00016438,2]
[333973855,1722655843578,-500.0,0.00016438,2]
[333973856,1722655843587,-223.41853665,0.00016438,2]
[333973857,1722655843596,-500.0,0.00016438,2]
[333973858,1722655843605,-535.43,0.00016438,2]
[333973859,1722655843614,-984.63,0.00016438,2]
[333973860,1722655843624,-500.0,0.00016438,2]
[333973861,1722655843633,-500.0,0.00016438,2]
[333973862,1722655843643,-500.0,0.00016438,2]
[333973863,1722655843652,-844.13,0.00016438,2]
[333973864,1722655843661,-500.0,0.00016438,2]
[333973865,1722655843671,-500.0,0.00016438,2]
[333973866,1722655843680,-760.16,0.00016438,2]
[333973867,1722655843689,-500.0,0.00016438,2]
[333973868,1722655843698,-500.0,0.00016438,2]
[333973869,1722655843707,-536.75,0.00016438,2]
[333973870,1722655843716,-651.07,0.00016438,2]
[333973871,1722655843726,-500.0,0.00016438,2]
[333973872,1722655843736,-699.09,0.00016438,2]
[333973873,1722655843745,-767.41,0.00016438,2]
[333973874,1722655843755,-614.68,0.00016438,2]
[333973875,1722655843764,-500.0,0.00016438,2]
[333973876,1722655843774,-549.6,0.00016438,2]
[333973877,1722655843784,-855.11,0.00016438,2]
[333973878,1722655843794,-746.12,0.00016438,2]
[333973879,1722655843803,-289.04434534,0.00016438,2]
[333973880,1722655844122,-210.95565466,0.00016438,2]
[333973881,1722655844132,-933.73,0.00016438,2]
[333973882,1722655844141,-500.0,0.00016438,2]
[333973883,1722655844151,-500.0,0.00016438,2]
[333973884,1722655844160,-500.0,0.00016438,2]
[333973885,1722655844169,-500.0,0.00016438,2]
[333973886,1722655844178,-553.80539135,0.00016438,2]
[333973887,1722655844216,-10.58460865,0.00016438,2]
[333973888,1722655844225,-446.51639371,0.00016438,2]
[333973889,1722655844236,-53.48360629,0.00016438,2]
[333973890,1722655844245,-752.12,0.00016438,2]
[333973891,1722655844255,-500.0,0.00016438,2]
[333973892,1722655844268,-30.84708573,0.00016438,2]
[333973893,1722655844281,-683.00291427,0.00016438,2]
[333973894,1722655844290,-77.74497774,0.00016438,2]
[333973895,1722655844421,-378.85110901,0.00016438,2]
[333973896,1722655844434,-43.40391325,0.00016438,2]
[333973897,1722655844445,-713.55,0.00016438,2]
[333973898,1722655844456,-500.0,0.00016438,2]
[333973899,1722655844466,-720.91,0.00016438,2]
[333973900,1722655844475,-513.54,0.00016438,2]
[333973901,1722655844485,-287.26025675,0.00016438,2]
[333973902,1722655844498,-212.73974325,0.00016438,2]
[333973903,1722655844507,-500.0,0.00016438,2]
[333973904,1722655844516,-29.91025676,0.00016438,2]
[333973905,1722655844529,-470.08974324,0.00016438,2]
[333973906,1722655844538,-621.43,0.00016438,2]
[333973907,1722655844547,-933.71,0.00016438,2]
[333973908,1722655844557,-771.87,0.00016438,2]
[333973909,1722655844566,-1085.35,0.00016438,2]
[333973910,1722655844575,-500.0,0.00016438,2]
[333973911,1722655844584,-500.0,0.00016438,2]
[333973912,1722655844594,-500.0,0.00016438,2]
[333973913,1722655844603,-500.0,0.00016438,2]
[333973914,1722655844612,-500.0,0.00016438,2]
[333973915,1722655844621,-500.0,0.00016438,2]
[333973916,1722655844631,-500.0,0.00016438,2]
[333973917,1722655844641,-597.25,0.00016438,2]
[333973918,1722655844650,-500.0,0.00016438,2]
[333973919,1722655844659,-538.82,0.00016438,2]
[333973920,1722655844668,-740.0,0.00016438,2]
[333973921,1722655844677,-641.28,0.00016438,2]
[333973922,1722655844687,-500.0,0.00016438,2]
[333973923,1722655844696,-703.09,0.00016438,2]
[333973924,1722655844705,-500.0,0.00016438,2]
[333973925,1722655844714,-500.0,0.00016438,2]
[333973926,1722655844723,-1256.55,0.00016438,2]
[333973927,1722655844732,-500.0,0.00016438,2]
[333973928,1722655844742,-500.0,0.00016438,2]
[333973929,1722655844751,-500.0,0.00016438,2]
[333973930,1722655844760,-1037.71,0.00016438,2]
[333973931,1722655844770,-500.0,0.00016438,2]
[333973932,1722655844780,-500.0,0.00016438,2]
[333973933,1722655844789,-500.0,0.00016438,2]
[333973934,1722655844800,-500.0,0.00016438,2]
[333973935,1722655844809,-660.21,0.00016438,2]
[333973936,1722655844818,-500.0,0.00016438,2]
[333973937,1722655844827,-577.6891138,0.00016438,2]
[333973938,1722655844836,-500.0,0.00016438,2]
[333973939,1722655844846,-500.0,0.00016438,2]
[333973940,1722655844855,-500.0,0.00016438,2]
[333973941,1722655844864,-787.41,0.00016438,2]
[333973942,1722655844873,-500.0,0.00016438,2]
[333973943,1722655844883,-500.0,0.00016438,2]
[333973944,1722655844892,-500.0,0.00016438,2]
[333973945,1722655844902,-500.0,0.00016438,2]
[333973946,1722655844911,-515.9,0.00016438,2]
[333973947,1722655844920,-720.28,0.00016438,2]
[333973948,1722655844929,-500.0,0.00016438,2]
[333973949,1722655844938,-719.53,0.00016438,2]
[333973950,1722655844948,-903.38,0.00016438,2]
[333973951,1722655844957,-500.0,0.00016438,2]
[333973952,1722655844967,-500.0,0.00016438,2]
[333973953,1722655844976,-500.0,0.00016438,2]
[333973954,1722655844986,-688.36,0.00016438,2]
[333973955,1722655844995,-500.0,0.00016438,2]
[333973956,1722655845005,-500.0,0.00016438,2]
[333973957,1722655845014,-500.0,0.00016438,2]
[333973958,1722655845024,-500.0,0.00016438,2]
[333973959,1722655845034,-500.0,0.00016438,2]
[333973960,1722655845043,-663.52,0.00016438,2]
[333973961,1722655845052,-500.0,0.00016438,2]
[333973962,1722655845061,-997.41,0.00016438,2]
[333973963,1722655845071,-767.61,0.00016438,2]
[333973964,1722655845080,-746.2,0.00016438,2]
[333973965,1722655845089,-500.0,0.00016438,2]
[333973966,1722655845098,-600.29,0.00016438,2]
[333973967,1722655845108,-500.0,0.00016438,2]
[333973968,1722655845117,-500.0,0.00016438,2]
[333973969,1722655845126,-500.0,0.00016438,2]
[333973970,1722655845135,-575.36,0.00016438,2]
[333973971,1722655845145,-500.0,0.00016438,2]
[333973972,1722655845155,-373.72828679,0.00016438,2]
[333973973,1722655845164,-1196.59,0.00016438,2]
[333973974,1722655845173,-840.25,0.00016438,2]
[333973975,1722655845183,-848.03,0.00016438,2]
[333973976,1722655845192,-1053.56,0.00016438,2]
[333973977,1722655845202,-500.0,0.00016438,2]
[333973978,1722655845211,-500.0,0.00016438,2]
[333973979,1722655845221,-500.0,0.00016438,2]
[333973980,1722655845230,-500.0,0.00016438,2]
[333973981,1722655845240,-500.0,0.00016438,2]
[333973982,1722655845249,-500.0,0.00016438,2]
[333973983,1722655845259,-904.68,0.00016438,2]
[333973984,1722655845272,-500.0,0.00016438,2]
[333973985,1722655845288,-500.0,0.00016438,2]
[333973986,1722655845297,-570.5,0.00016438,2]
[333973987,1722655845307,-500.0,0.00016438,2]
[333973988,1722655845316,-500.0,0.00016438,2]
[333973989,1722655845326,-500.0,0.00016438,2]
[333973990,1722655845335,-528.57467962,0.00016438,2]
[333973991,1722655845345,-613.59,0.00016438,2]
[333973992,1722655845355,-500.0,0.00016438,2]
[333973993,1722655845364,-500.0,0.00016438,2]
[333973994,1722655845374,-500.0,0.00016438,2]
[333973995,1722655845383,-501.73,0.00016438,2]
[333973996,1722655845392,-500.0,0.00016438,2]
[333973997,1722655845401,-500.0,0.00016438,2]
[333973998,1722655845411,-500.0,0.00016438,2]
[333973999,1722655845422,-500.0,0.00016438,2]
[333974000,1722655845431,-295.72,0.00016438,2]
[333974001,1722655845441,-980.64,0.00016438,2]
[333974002,1722655845451,-500.0,0.00016438,2]
[333974003,1722655845460,-661.35,0.00016438,2]
[333974004,1722655845470,-500.0,0.00016438,2]
[333974005,1722655845480,-500.0,0.00016438,2]
[333974006,1722655845489,-1051.37,0.00016438,2]
[333974007,1722655845499,-550.21,0.00016438,2]
[333974008,1722655845508,-500.0,0.00016438,2]
[333974009,1722655845517,-500.0,0.00016438,2]
[333974010,1722655845527,-500.0,0.00016438,2]
[333974011,1722655845537,-1176.65267702,0.00016438,2]
[333974012,1722655845554,-891.42732298,0.00016438,2]
[333974013,1722655845563,-299.63610528,0.00016438,2]
[333974014,1722655845575,-256.62236691,0.00016438,2]
[333974017,1722655846225,-262.79152781,0.00016438,2]
[333974018,1722655846234,-352.56847219,0.00016438,2]
[333974019,1722655846306,-147.43152781,0.00016438,2]
[333974020,1722655846317,-402.91512762,0.00016438,2]
[333974021,1722655846952,-302.0,0.00016438,2]
[333974022,1722655847283,-51.12487238,0.00016438,2]
[333974023,1722655847292,-500.0,0.00016438,2]
[333974024,1722655847301,-500.0,0.00016438,2]
[333974025,1722655847312,-312.52177582,0.00016438,2]
[333974026,1722655847321,-500.0,0.00016438,2]
[333974027,1722655847330,-1132.79,0.00016438,2]
[333974028,1722655847340,-500.0,0.00016438,2]
[333974029,1722655847349,-500.0,0.00016438,2]
[333974030,1722655847360,-500.0,0.00016438,2]
[333974031,1722655847369,-611.65,0.00016438,2]
[333974032,1722655847378,-151.0,0.00016438,2]
[333974033,1722655847388,-151.0,0.00016438,2]
[333974034,1722655847397,-151.0,0.00016438,2]
[333974035,1722655847406,-540.15599182,0.00016438,2]
[333974036,1722655847418,-161.06400818,0.00016438,2]
[333974037,1722655847427,-151.0,0.00016438,2]
[333974038,1722655847436,-500.0,0.00016438,2]
[333974039,1722655847445,-1347.32,0.00016438,2]
[333974040,1722655847454,-1324.32,0.00016438,2]
[333974041,1722655847464,-500.0,0.00016438,2]
[333974042,1722655847472,-500.0,0.00016438,2]
[333974043,1722655847482,-552.18,0.00016438,2]
[333974044,1722655847491,-500.0,0.00016438,2]
[333974045,1722655847500,-500.0,0.00016438,2]
[333974046,1722655847510,-500.0,0.00016438,2]
[333974047,1722655847519,-500.0,0.00016438,2]
[333974048,1722655847528,-500.0,0.00016438,2]
[333974049,1722655847539,-500.0,0.00016438,2]
[333974050,1722655847548,-670.18,0.00016438,2]
[333974051,1722655847557,-732.98,0.00016438,2]
[333974052,1722655847566,-1259.4,0.00016438,2]
[333974053,1722655847575,-500.0,0.00016438,2]
[333974054,1722655847585,-976.36,0.00016438,2]
[333974055,1722655847595,-500.0,0.00016438,2]
[333974056,1722655847604,-500.0,0.00016438,2]
[333974057,1722655847613,-501.72,0.00016438,2]
[333974058,1722655847623,-966.28,0.00016438,2]
[333974059,1722655847632,-500.0,0.00016438,2]
[333974060,1722655847641,-500.0,0.00016438,2]
[333974061,1722655847650,-500.0,0.00016438,2]
[333974062,1722655847659,-500.0,0.00016438,2]
[333974063,1722655847669,-500.0,0.00016438,2]
[333974064,1722655847678,-500.0,0.00016438,2]
[333974065,1722655847687,-1271.28,0.00016438,2]
[333974066,1722655847697,-1017.49,0.00016438,2]
[333974067,1722655847706,-700.51,0.00016438,2]
[333974068,1722655847715,-687.96,0.00016438,2]
[333974069,1722655847724,-803.76,0.00016438,2]
[333974070,1722655847733,-985.88,0.00016438,2]
[333974071,1722655847743,-730.31,0.00016438,2]
[333974072,1722655847752,-542.67,0.00016438,2]
[333974073,1722655847761,-500.0,0.00016438,2]
[333974074,1722655847771,-500.0,0.00016438,2]
[333974075,1722655847780,-216.07813963,0.00016438,2]
[333974076,1722655848578,-1012.40186037,0.00016438,2]
[333974077,1722655848588,-222.83964153,0.00016438,2]
[333974078,1722655848691,-277.16035847,0.00016438,2]
[333974079,1722655848700,-500.0,0.00016438,2]
[333974080,1722655848710,-179.28964153,0.00016438,2]
[333974081,1722655848721,-584.74,0.00016438,2]
[333974082,1722655848732,-712.87035847,0.00016438,2]
[333974083,1722655848741,-733.17,0.00016438,2]
[333974084,1722655848750,-665.15,0.00016438,2]
[333974085,1722655848760,-2310.07359,0.00016438,2]
[333974086,1722655848769,-757.51,0.00016438,2]
[333974087,1722655848778,-782.72,0.00016438,2]
[333974088,1722655848792,-711.02,0.00016438,2]
[333974089,1722655848802,-500.0,0.00016438,2]
[333974090,1722655848811,-500.0,0.00016438,2]
[333974091,1722655848821,-751.16,0.00016438,2]
[333974092,1722655848830,-2122.71,0.00016438,2]
[333974093,1722655848840,-500.0,0.00016438,2]
[333974094,1722655848849,-500.0,0.00016438,2]
[333974095,1722655848858,-875.66,0.00016438,2]
[333974096,1722655848868,-500.0,0.00016438,2]
[333974097,1722655848877,-681.55,0.00016438,2]
[333974098,1722655848887,-500.0,0.00016438,2]
[333974099,1722655848897,-812.08,0.00016438,2]
[333974100,1722655848906,-1495.0,0.00016438,2]
[333974101,1722655848916,-2628.48,0.00016438,2]
[333974102,1722655848926,-527.83,0.00016438,2]
[333974103,1722655848935,-573.65,0.00016438,2]
[333974104,1722655848944,-1028.6,0.00016438,2]
[333974105,1722655848954,-787.86,0.00016438,2]
[333974106,1722655848965,-47.57772647,0.00016438,2]
[333974107,1722655848978,-452.42227353,0.00016438,2]
[333974108,1722655848987,-789.95,0.00016438,2]
[333974109,1722655848998,-934.51985123,0.00016438,2]
[333974110,1722655849098,-312.94014877,0.00016438,2]
[333974111,1722655849108,-500.0,0.00016438,2]
[333974112,1722655849118,-574.39,0.00016438,2]
[333974113,1722655849127,-838.09,0.00016438,2]
[333974114,1722655849137,-2656.48,0.00016438,2]
[333974115,1722655849146,-500.0,0.00016438,2]
[333974116,1722655849156,-880.911342,0.00016438,2]
[333974117,1722655849165,-880.911342,0.00016438,2]
[333974118,1722655849174,-880.911342,0.00016438,2]
[333974119,1722655849184,-522.91,0.00016438,2]
[333974120,1722655849193,-709.54,0.00016438,2]
[333974121,1722655849202,-500.0,0.00016438,2]
[333974122,1722655849211,-880.911342,0.00016438,2]
[333974123,1722655849221,-722.70784013,0.00016438,2]
[333974124,1722655849234,-158.20350187,0.00016438,2]
[333974125,1722655849243,-157.81053025,0.00016438,2]
[333974126,1722655849254,-342.18946975,0.00016438,2]
[333974127,1722655849263,-880.911342,0.00016438,2]
[333974128,1722655849275,-731.70701458,0.00016438,2]
[333974129,1722655849288,-149.20432742,0.00016438,2]